[Event "Late-Titled-Tuesday-Blitz-September-19-2023"]
[Site "Chess.com"]
[Date "2023.09.19"]
[Round "5"]
[White "JackRodgers"]
[Black "zsoltkorpics"]
[Result "1-0"]
[WhiteElo "2507"]
[BlackElo "2351"]
[TimeControl "180+1"]
[EndTime "14:54:17 PDT"]
[Termination "JackRodgers won by resignation"]

1. d4 {[%clk 0:03:00.6]} 1... Nf6 {[%clk 0:02:59.4]} 2. Bg5 {[%clk 0:03:00.4]}
2... Ne4 {[%clk 0:02:59]} 3. h4 {[%clk 0:02:58.6]} 3... d5 {[%clk 0:02:53.1]} 4.
Nd2 {[%clk 0:02:57.7]} 4... Nxg5 {[%clk 0:02:51.5]} 5. hxg5 {[%clk 0:02:57.4]}
5... c5 {[%clk 0:02:39]} 6. dxc5 {[%clk 0:02:54.7]} 6... e6 {[%clk 0:02:38.4]}
7. e3 {[%clk 0:02:49.8]} 7... Bxc5 {[%clk 0:02:37.4]} 8. g6 {[%clk 0:02:49.7]}
8... fxg6 {[%clk 0:02:33.4]} 9. Bd3 {[%clk 0:02:49.8]} 9... Qf6 {[%clk
0:02:32.3]} 10. Qg4 {[%clk 0:02:35.5]} 10... O-O {[%clk 0:02:18.7]} 11. O-O-O
{[%clk 0:02:06.2]} 11... e5 {[%clk 0:02:15.8]} 12. Qa4 {[%clk 0:01:57.4]} 12...
e4 {[%clk 0:02:09.3]} 13. Bxe4 {[%clk 0:01:39.7]} 13... Be6 {[%clk 0:01:53.5]}
14. Bf3 {[%clk 0:01:23.5]} 14... Nc6 {[%clk 0:01:51.1]} 15. Nb3 {[%clk
0:01:22.8]} 15... Be7 {[%clk 0:01:41.8]} 16. Nh3 {[%clk 0:01:21]} 16... Rad8
{[%clk 0:01:06.6]} 17. Nf4 {[%clk 0:01:18.6]} 17... g5 {[%clk 0:01:02.8]} 18.
Nxe6 {[%clk 0:01:12.7]} 18... Qxe6 {[%clk 0:01:01.7]} 19. Nd4 {[%clk 0:01:12.8]}
19... Qf6 {[%clk 0:00:52.9]} 20. Qb3 {[%clk 0:01:07]} 20... Qe5 {[%clk
0:00:41.4]} 21. Ne2 {[%clk 0:00:54.6]} 21... Na5 {[%clk 0:00:28.4]} 22. Bxd5+
{[%clk 0:00:52.5]} 22... Kh8 {[%clk 0:00:24.9]} 23. Qd3 {[%clk 0:00:32.3]} 23...
h6 {[%clk 0:00:20.6]} 24. Nc3 {[%clk 0:00:24.3]} 24... Bf6 {[%clk 0:00:20.5]}
25. Qg6 {[%clk 0:00:20.7]} 25... Rxd5 {[%clk 0:00:08]} 26. Rxd5 {[%clk
0:00:21.6]} 26... Qc7 {[%clk 0:00:07]} 27. Qd3 {[%clk 0:00:14.4]} 27... Nc6
{[%clk 0:00:06.6]} 28. Qc4 {[%clk 0:00:13]} 28... Qb6 {[%clk 0:00:06.4]} 29.
Rhd1 {[%clk 0:00:11.7]} 29... Ne5 {[%clk 0:00:05.8]} 30. Qc5 {[%clk 0:00:11.1]}
30... Qa6 {[%clk 0:00:05.8]} 31. Qxf8+ {[%clk 0:00:10.6]} 31... Kh7 {[%clk
0:00:05.6]} 32. Rxe5 {[%clk 0:00:10.4]} 32... Bxe5 {[%clk 0:00:04.1]} 33. Qf5+
{[%clk 0:00:11]} 33... Qg6 {[%clk 0:00:03.3]} 34. Qxe5 {[%clk 0:00:10.9]} 34...
h5 {[%clk 0:00:03.4]} 35. Qe4 {[%clk 0:00:11.4]} 35... Kh6 {[%clk 0:00:03.6]}
36. Qxg6+ {[%clk 0:00:11.7]} 36... Kxg6 {[%clk 0:00:04.5]} 37. Rd7 {[%clk
0:00:12.3]} 1-0

[Event "Late-Titled-Tuesday-Blitz-September-19-2023"]
[Site "Chess.com"]
[Date "2023.09.19"]
[Round "5"]
[White "K_A_S_T_O_R"]
[Black "MKlose11"]
[Result "1-0"]
[WhiteElo "2916"]
[BlackElo "2587"]
[TimeControl "180+1"]
[EndTime "14:54:18 PDT"]
[Termination "K_A_S_T_O_R won by resignation"]

1. e4 {[%clk 0:02:57.5]} 1... e6 {[%clk 0:02:59.9]} 2. d4 {[%clk 0:02:56.4]}
2... d5 {[%clk 0:02:58.3]} 3. Nc3 {[%clk 0:02:56.8]} 3... Bb4 {[%clk 0:02:56.7]}
4. e5 {[%clk 0:02:56.5]} 4... b6 {[%clk 0:02:56.7]} 5. Bd2 {[%clk 0:02:54.1]}
5... Ne7 {[%clk 0:02:49.6]} 6. Bb5+ {[%clk 0:02:47.9]} 6... c6 {[%clk
0:02:48.5]} 7. Ba4 {[%clk 0:02:47.2]} 7... Ba6 {[%clk 0:02:45.9]} 8. Nce2 {[%clk
0:02:43.6]} 8... Bxd2+ {[%clk 0:02:45.2]} 9. Qxd2 {[%clk 0:02:44.2]} 9... O-O
{[%clk 0:02:22.6]} 10. Nf3 {[%clk 0:02:43.6]} 10... c5 {[%clk 0:02:22.6]} 11. c3
{[%clk 0:02:43.1]} 11... Nbc6 {[%clk 0:02:20.7]} 12. O-O {[%clk 0:02:40.6]}
12... Rc8 {[%clk 0:02:20.8]} 13. Rfe1 {[%clk 0:02:29]} 13... cxd4 {[%clk
0:02:16.7]} 14. Nexd4 {[%clk 0:02:28.4]} 14... Nxd4 {[%clk 0:02:15.6]} 15. Nxd4
{[%clk 0:02:28.9]} 15... b5 {[%clk 0:01:59.6]} 16. Bc2 {[%clk 0:02:22.6]} 16...
Nc6 {[%clk 0:01:59.7]} 17. Nf3 {[%clk 0:02:19.2]} 17... b4 {[%clk 0:01:49.3]}
18. cxb4 {[%clk 0:02:16.5]} 18... Nxb4 {[%clk 0:01:46.9]} 19. Bxh7+ {[%clk
0:02:07.2]} 19... Kxh7 {[%clk 0:01:47.8]} 20. Qxb4 {[%clk 0:02:07]} 20... Rb8
{[%clk 0:01:38.3]} 21. Qd2 {[%clk 0:01:59.3]} 21... Qb6 {[%clk 0:01:28.5]} 22.
b3 {[%clk 0:01:58.8]} 22... Qb4 {[%clk 0:01:23.6]} 23. Qc2+ {[%clk 0:01:42.8]}
23... Kg8 {[%clk 0:01:16]} 24. Ng5 {[%clk 0:01:31.6]} 24... Qh4 {[%clk
0:01:15.2]} 25. f4 {[%clk 0:01:29.4]} 25... Rfc8 {[%clk 0:01:12.4]} 26. Qd2
{[%clk 0:01:29.5]} 26... Qg4 {[%clk 0:01:02.2]} 27. Rac1 {[%clk 0:01:24.7]}
27... Qf5 {[%clk 0:01:00.9]} 28. Nf3 {[%clk 0:01:23.3]} 28... Qd3 {[%clk
0:00:53.5]} 29. Qxd3 {[%clk 0:01:20.8]} 29... Bxd3 {[%clk 0:00:54.4]} 30. Kf2
{[%clk 0:01:17.4]} 30... Be4 {[%clk 0:00:53.6]} 31. Nd4 {[%clk 0:01:17.4]} 31...
Kf8 {[%clk 0:00:45.8]} 32. g3 {[%clk 0:01:16.7]} 32... Ke8 {[%clk 0:00:46.1]}
33. Ke3 {[%clk 0:01:16.1]} 33... Kd7 {[%clk 0:00:45.7]} 34. h4 {[%clk
0:01:14.5]} 34... f6 {[%clk 0:00:40.9]} 35. Kd2 {[%clk 0:01:09.7]} 35... a6
{[%clk 0:00:23.9]} 36. Rxc8 {[%clk 0:01:05.5]} 36... Rxc8 {[%clk 0:00:24.8]} 37.
Rc1 {[%clk 0:01:05.2]} 37... Rf8 {[%clk 0:00:25]} 38. Ke3 {[%clk 0:01:00.8]}
38... fxe5 {[%clk 0:00:24]} 39. fxe5 {[%clk 0:01:01.3]} 39... a5 {[%clk
0:00:20.5]} 40. Rc6 {[%clk 0:01:00.8]} 40... Rf1 {[%clk 0:00:18.2]} 41. Rd6+
{[%clk 0:01:00.3]} 41... Kc8 {[%clk 0:00:16.6]} 42. Nxe6 {[%clk 0:00:57.4]}
42... Rf3+ {[%clk 0:00:15.6]} 43. Kd4 {[%clk 0:00:56.8]} 43... Rxg3 {[%clk
0:00:15.8]} 44. Nc5 {[%clk 0:00:55.6]} 44... Rg4 {[%clk 0:00:14.4]} 45. Nxe4
{[%clk 0:00:52.6]} 45... Rxe4+ {[%clk 0:00:12.3]} 46. Kxd5 {[%clk 0:00:52.5]}
46... Rxh4 {[%clk 0:00:13.2]} 47. Rc6+ {[%clk 0:00:51.1]} 47... Kd8 {[%clk
0:00:13.1]} 48. Ra6 {[%clk 0:00:49.3]} 48... a4 {[%clk 0:00:07.2]} 49. Rxa4
{[%clk 0:00:47.8]} 49... Rh2 {[%clk 0:00:07.6]} 50. Ke6 {[%clk 0:00:45.2]} 50...
Rh6+ {[%clk 0:00:06.7]} 51. Kf7 {[%clk 0:00:45.2]} 51... g5 {[%clk 0:00:07.6]}
52. Rd4+ {[%clk 0:00:43.7]} 52... Kc7 {[%clk 0:00:07.7]} 53. e6 {[%clk
0:00:43.9]} 53... Rh7+ {[%clk 0:00:08.2]} 54. Kg6 {[%clk 0:00:44.3]} 54... Re7
{[%clk 0:00:08.5]} 55. Kf6 {[%clk 0:00:44.4]} 55... Re8 {[%clk 0:00:09]} 56. Kf7
{[%clk 0:00:44]} 1-0

[Event "Late-Titled-Tuesday-Blitz-September-19-2023"]
[Site "Chess.com"]
[Date "2023.09.19"]
[Round "5"]
[White "campochess"]
[Black "norwaytoadog"]
[Result "1-0"]
[WhiteElo "2179"]
[BlackElo "2331"]
[TimeControl "180+1"]
[EndTime "14:54:18 PDT"]
[Termination "campochess won on time"]

1. d4 {[%clk 0:02:51.6]} 1... d5 {[%clk 0:02:57.8]} 2. Bg5 {[%clk 0:02:51.4]}
2... f6 {[%clk 0:02:55.1]} 3. Bd2 {[%clk 0:02:50.7]} 3... Nc6 {[%clk 0:02:51.7]}
4. c3 {[%clk 0:02:49.8]} 4... e5 {[%clk 0:02:43.6]} 5. e3 {[%clk 0:02:48.7]}
5... a6 {[%clk 0:02:42]} 6. f4 {[%clk 0:02:36.5]} 6... Bf5 {[%clk 0:02:37.7]} 7.
Ne2 {[%clk 0:02:30.8]} 7... exf4 {[%clk 0:02:07.3]} 8. Nxf4 {[%clk 0:02:30]}
8... Nge7 {[%clk 0:01:39.3]} 9. Bd3 {[%clk 0:02:28.7]} 9... Qd7 {[%clk 0:01:38]}
10. Bxf5 {[%clk 0:02:27.5]} 10... Qxf5 {[%clk 0:01:31.8]} 11. O-O {[%clk
0:02:26.7]} 11... Qd7 {[%clk 0:01:25.2]} 12. Na3 {[%clk 0:02:25.6]} 12... O-O-O
{[%clk 0:01:24.7]} 13. b4 {[%clk 0:02:23.8]} 13... Ng6 {[%clk 0:01:22.6]} 14.
Nd3 {[%clk 0:02:22.2]} 14... Bd6 {[%clk 0:01:19.4]} 15. Nc2 {[%clk 0:02:13.3]}
15... Rde8 {[%clk 0:01:12.5]} 16. Rb1 {[%clk 0:02:08.9]} 16... h5 {[%clk
0:01:11.8]} 17. b5 {[%clk 0:02:08.7]} 17... axb5 {[%clk 0:01:11.9]} 18. Rxb5
{[%clk 0:02:08.1]} 18... Nce7 {[%clk 0:00:46.2]} 19. Qb1 {[%clk 0:02:03.1]}
19... c6 {[%clk 0:00:44.8]} 20. Rb3 {[%clk 0:02:01.5]} 20... Qc7 {[%clk
0:00:37.7]} 21. Nf4 {[%clk 0:01:57.6]} 21... Nxf4 {[%clk 0:00:36.6]} 22. exf4
{[%clk 0:01:57]} 22... Nf5 {[%clk 0:00:34.1]} 23. Qd1 {[%clk 0:01:43.7]} 23...
Re4 {[%clk 0:00:33.7]} 24. Qf3 {[%clk 0:01:42.7]} 24... h4 {[%clk 0:00:32.5]}
25. Ne1 {[%clk 0:01:32.1]} 25... Rhe8 {[%clk 0:00:31.8]} 26. Nd3 {[%clk
0:01:31.7]} 26... Qd7 {[%clk 0:00:29]} 27. Ne5 {[%clk 0:01:22.3]} 27... fxe5
{[%clk 0:00:26.7]} 28. fxe5 {[%clk 0:01:22.2]} 28... g6 {[%clk 0:00:23.9]} 29.
exd6 {[%clk 0:01:20.9]} 29... Qxd6 {[%clk 0:00:24.3]} 30. Rfb1 {[%clk
0:01:15.7]} 30... R8e7 {[%clk 0:00:22.2]} 31. Bg5 {[%clk 0:01:13.6]} 31... Re1+
{[%clk 0:00:16.5]} 32. Rxe1 {[%clk 0:01:11.7]} 32... Rxe1+ {[%clk 0:00:16.7]}
33. Kf2 {[%clk 0:01:11.3]} 33... Qe6 {[%clk 0:00:16.8]} 34. Rb2 {[%clk
0:01:04.1]} 34... b5 {[%clk 0:00:14.7]} 35. a4 {[%clk 0:00:56.5]} 35... bxa4
{[%clk 0:00:14.1]} 36. Qf4 {[%clk 0:00:52.7]} 36... Nd6 {[%clk 0:00:10.3]} 37.
Qf8+ {[%clk 0:00:50.5]} 37... Ne8 {[%clk 0:00:09.9]} 38. Qb4 {[%clk 0:00:46.2]}
38... Nc7 {[%clk 0:00:05.2]} 39. Qb7+ {[%clk 0:00:45.4]} 39... Kd7 {[%clk
0:00:03.9]} 40. Qb8 {[%clk 0:00:42.4]} 40... Qe8 {[%clk 0:00:01.9]} 41. Qb4
{[%clk 0:00:34.2]} 1-0

[Event "Late-Titled-Tuesday-Blitz-September-19-2023"]
[Site "Chess.com"]
[Date "2023.09.19"]
[Round "5"]
[White "sergoy"]
[Black "FairChess_on_YouTube"]
[Result "0-1"]
[WhiteElo "2907"]
[BlackElo "3080"]
[TimeControl "180+1"]
[EndTime "14:54:22 PDT"]
[Termination "FairChess_on_YouTube won by resignation"]

1. d4 {[%clk 0:03:00]} 1... Nf6 {[%clk 0:03:00.1]} 2. c4 {[%clk 0:02:59.1]} 2...
d6 {[%clk 0:03:00.7]} 3. Nf3 {[%clk 0:02:59]} 3... g6 {[%clk 0:03:00.3]} 4. g3
{[%clk 0:02:58.8]} 4... Bg7 {[%clk 0:03:00.3]} 5. Bg2 {[%clk 0:02:59.5]} 5...
O-O {[%clk 0:03:00.3]} 6. O-O {[%clk 0:03:00.3]} 6... c6 {[%clk 0:03:00.8]} 7.
Nc3 {[%clk 0:03:00.3]} 7... Bf5 {[%clk 0:03:00.6]} 8. Ne1 {[%clk 0:02:59.6]}
8... Na6 {[%clk 0:02:57.5]} 9. e4 {[%clk 0:02:56.2]} 9... Bg4 {[%clk 0:02:53.7]}
10. Qb3 {[%clk 0:02:36]} 10... e5 {[%clk 0:02:43]} 11. dxe5 {[%clk 0:02:19.4]}
11... Nd7 {[%clk 0:02:36.5]} 12. exd6 {[%clk 0:02:13.6]} 12... Ndc5 {[%clk
0:02:36.1]} 13. Qa3 {[%clk 0:02:13]} 13... Qxd6 {[%clk 0:02:31.9]} 14. Be3
{[%clk 0:02:04.8]} 14... Rfd8 {[%clk 0:02:30.4]} 15. Rc1 {[%clk 0:01:34.2]}
15... Bxc3 {[%clk 0:02:05.7]} 16. Qxc3 {[%clk 0:01:35.1]} 16... Be2 {[%clk
0:02:05.2]} 17. e5 {[%clk 0:01:32.1]} 17... Qe6 {[%clk 0:01:58.3]} 18. Nf3
{[%clk 0:01:11.6]} 18... Bxf1 {[%clk 0:01:50.8]} 19. Bxf1 {[%clk 0:01:11.8]}
19... Qf5 {[%clk 0:01:36.2]} 20. Nh4 {[%clk 0:00:56]} 20... Qh5 {[%clk
0:01:25.8]} 21. f4 {[%clk 0:00:30.8]} 21... Rd1 {[%clk 0:01:24.1]} 22. b4 {[%clk
0:00:19.3]} 22... Ne6 {[%clk 0:00:54.6]} 23. Kg2 {[%clk 0:00:14.6]} 23... Rad8
{[%clk 0:00:51.8]} 24. Rc2 {[%clk 0:00:11.7]} 24... Rxf1 {[%clk 0:00:39]} 25.
Kxf1 {[%clk 0:00:12.6]} 25... Qd1+ {[%clk 0:00:38.8]} 26. Kg2 {[%clk 0:00:06.6]}
26... Rd3 {[%clk 0:00:30.5]} 27. Rd2 {[%clk 0:00:06.7]} 27... Rxc3 {[%clk
0:00:27.7]} 28. Rxd1 {[%clk 0:00:07.2]} 28... Rxe3 {[%clk 0:00:28.3]} 29. f5
{[%clk 0:00:07.9]} 29... gxf5 {[%clk 0:00:26.8]} 30. Nxf5 {[%clk 0:00:07.6]}
30... Rxe5 {[%clk 0:00:26.6]} 31. Nd6 {[%clk 0:00:08.1]} 31... Nxb4 {[%clk
0:00:25.4]} 32. Nxb7 {[%clk 0:00:08.3]} 32... Nxa2 {[%clk 0:00:24.8]} 33. Rd7
{[%clk 0:00:07.8]} 33... Nb4 {[%clk 0:00:18.9]} 34. Nd6 {[%clk 0:00:07.7]} 34...
Re2+ {[%clk 0:00:18.3]} 35. Kh3 {[%clk 0:00:07.8]} 35... Rd2 {[%clk 0:00:18.2]}
36. Kg4 {[%clk 0:00:06.9]} 36... a5 {[%clk 0:00:17.2]} 37. Kf5 {[%clk
0:00:05.7]} 37... Na6 {[%clk 0:00:12.6]} 38. Ne8 {[%clk 0:00:03.2]} 38... Rxd7
{[%clk 0:00:11.7]} 39. Nf6+ {[%clk 0:00:03.9]} 39... Kg7 {[%clk 0:00:12.3]} 0-1

[Event "Late-Titled-Tuesday-Blitz-September-19-2023"]
[Site "Chess.com"]
[Date "2023.09.19"]
[Round "5"]
[White "Bilan_Danila"]
[Black "stasOR4ik"]
[Result "1-0"]
[WhiteElo "2566"]
[BlackElo "2438"]
[TimeControl "180+1"]
[EndTime "14:54:22 PDT"]
[Termination "Bilan_Danila won on time"]

1. d4 {[%clk 0:02:52]} 1... d5 {[%clk 0:02:59.1]} 2. Nf3 {[%clk 0:02:52.2]} 2...
Nf6 {[%clk 0:02:58.8]} 3. c4 {[%clk 0:02:52.6]} 3... c6 {[%clk 0:02:59.3]} 4.
Nc3 {[%clk 0:02:52.8]} 4... dxc4 {[%clk 0:02:58.7]} 5. a4 {[%clk 0:02:52.1]}
5... Bf5 {[%clk 0:02:57.7]} 6. e3 {[%clk 0:02:52.1]} 6... e6 {[%clk 0:02:57.9]}
7. Bxc4 {[%clk 0:02:52.7]} 7... Bb4 {[%clk 0:02:56.1]} 8. O-O {[%clk 0:02:52.9]}
8... O-O {[%clk 0:02:55.9]} 9. Qe2 {[%clk 0:02:53.5]} 9... Nbd7 {[%clk
0:02:47.5]} 10. e4 {[%clk 0:02:53.2]} 10... Bg4 {[%clk 0:02:39.4]} 11. h3 {[%clk
0:02:52.8]} 11... Bxf3 {[%clk 0:02:35.5]} 12. Qxf3 {[%clk 0:02:53.7]} 12... Nb6
{[%clk 0:02:34.7]} 13. Qd3 {[%clk 0:02:22.7]} 13... Bxc3 {[%clk 0:02:23.6]} 14.
bxc3 {[%clk 0:02:17.1]} 14... Nxc4 {[%clk 0:02:23.8]} 15. Qxc4 {[%clk
0:02:15.6]} 15... Nxe4 {[%clk 0:02:24.4]} 16. Re1 {[%clk 0:02:10.2]} 16... Nd6
{[%clk 0:02:20.7]} 17. Qc5 {[%clk 0:02:00.7]} 17... Qd7 {[%clk 0:01:48.9]} 18.
Ba3 {[%clk 0:01:50.4]} 18... Rfd8 {[%clk 0:01:47.9]} 19. Rab1 {[%clk 0:01:41]}
19... b6 {[%clk 0:01:44.1]} 20. Qg5 {[%clk 0:01:29.8]} 20... Nc4 {[%clk
0:01:41]} 21. Be7 {[%clk 0:01:18]} 21... h6 {[%clk 0:01:09.1]} 22. Qh4 {[%clk
0:01:12.8]} 22... Re8 {[%clk 0:01:07.9]} 23. Rb4 {[%clk 0:00:34.1]} 23... Na5
{[%clk 0:00:20.1]} 24. Bf6 {[%clk 0:00:30.8]} 24... gxf6 {[%clk 0:00:16.8]} 25.
Qxh6 {[%clk 0:00:21.8]} 25... f5 {[%clk 0:00:12]} 26. Re3 {[%clk 0:00:19.2]}
26... f4 {[%clk 0:00:12.4]} 27. d5 {[%clk 0:00:12.5]} 27... exd5 {[%clk
0:00:06]} 28. Rxf4 {[%clk 0:00:11.4]} 28... Rxe3 {[%clk 0:00:06]} 29. Rg4+
{[%clk 0:00:10.5]} 29... Qxg4 {[%clk 0:00:04.9]} 30. hxg4 {[%clk 0:00:10.9]}
30... Re1+ {[%clk 0:00:05.1]} 31. Kh2 {[%clk 0:00:11.5]} 31... Re6 {[%clk
0:00:04.4]} 32. Qh5 {[%clk 0:00:09.9]} 32... Kg7 {[%clk 0:00:04.2]} 33. Kg3
{[%clk 0:00:08]} 33... Rae8 {[%clk 0:00:03]} 34. Qg5+ {[%clk 0:00:08.4]} 34...
Kf8 {[%clk 0:00:03.1]} 35. f4 {[%clk 0:00:08.3]} 35... Re3+ {[%clk 0:00:02.7]}
36. Kh2 {[%clk 0:00:06.6]} 36... Nc4 {[%clk 0:00:03.2]} 37. f5 {[%clk
0:00:05.9]} 1-0

[Event "Late-Titled-Tuesday-Blitz-September-19-2023"]
[Site "Chess.com"]
[Date "2023.09.19"]
[Round "5"]
[White "simplerXiao"]
[Black "KaydenTroffChess"]
[Result "1-0"]
[WhiteElo "2586"]
[BlackElo "2775"]
[TimeControl "180+1"]
[EndTime "14:54:23 PDT"]
[Termination "simplerXiao won by resignation"]

1. e4 {[%clk 0:01:02]} 1... c5 {[%clk 0:02:59.5]} 2. Nf3 {[%clk 0:01:01.1]} 2...
g6 {[%clk 0:02:59.9]} 3. d4 {[%clk 0:00:59.8]} 3... cxd4 {[%clk 0:03:00.8]} 4.
Nxd4 {[%clk 0:00:59.7]} 4... Bg7 {[%clk 0:02:59.5]} 5. c4 {[%clk 0:00:57.7]}
5... Qb6 {[%clk 0:02:59.3]} 6. Nb3 {[%clk 0:00:56.4]} 6... a5 {[%clk 0:02:58.5]}
7. c5 {[%clk 0:00:55.2]} 7... Qc6 {[%clk 0:02:33.2]} 8. Qd5 {[%clk 0:00:43]}
8... a4 {[%clk 0:02:29.7]} 9. N3d2 {[%clk 0:00:42.7]} 9... a3 {[%clk 0:02:24.5]}
10. Nc3 {[%clk 0:00:39.1]} 10... Nf6 {[%clk 0:02:17.6]} 11. Qxc6 {[%clk
0:00:38.5]} 11... Nxc6 {[%clk 0:02:18.5]} 12. Bd3 {[%clk 0:00:34.6]} 12... Nh5
{[%clk 0:01:50.2]} 13. Rb1 {[%clk 0:00:32.9]} 13... Nf4 {[%clk 0:01:36.8]} 14.
Bf1 {[%clk 0:00:32.8]} 14... Nb4 {[%clk 0:01:36.7]} 15. bxa3 {[%clk 0:00:29.1]}
15... Nbd3+ {[%clk 0:01:10]} 16. Bxd3 {[%clk 0:00:29]} 16... Nxd3+ {[%clk
0:01:09.8]} 17. Ke2 {[%clk 0:00:29.7]} 17... Nxf2 {[%clk 0:01:01]} 18. Nb5
{[%clk 0:00:27.2]} 18... Nxh1 {[%clk 0:00:53.6]} 19. Nc7+ {[%clk 0:00:27.4]}
19... Kd8 {[%clk 0:00:51.9]} 20. Nxa8 {[%clk 0:00:28.3]} 20... d6 {[%clk
0:00:41.1]} 21. cxd6 {[%clk 0:00:27.4]} 21... exd6 {[%clk 0:00:42]} 22. Nc4
{[%clk 0:00:27]} 22... Bg4+ {[%clk 0:00:38.2]} 23. Kf1 {[%clk 0:00:25]} 23...
Be6 {[%clk 0:00:31.6]} 24. Nab6 {[%clk 0:00:25]} 24... Kc7 {[%clk 0:00:11.2]}
25. Nd5+ {[%clk 0:00:25.1]} 25... Bxd5 {[%clk 0:00:10.8]} 26. exd5 {[%clk
0:00:26]} 26... Bd4 {[%clk 0:00:10.8]} 27. Na5 {[%clk 0:00:19.3]} 27... b6
{[%clk 0:00:09.4]} 28. Nb3 {[%clk 0:00:19.6]} 28... Be5 {[%clk 0:00:06.5]} 29.
g3 {[%clk 0:00:19.1]} 29... Nxg3+ {[%clk 0:00:05.9]} 30. hxg3 {[%clk 0:00:18.9]}
30... Bxg3 {[%clk 0:00:06.8]} 31. Kg2 {[%clk 0:00:19.2]} 31... Be5 {[%clk
0:00:07.1]} 32. Be3 {[%clk 0:00:19.6]} 32... h5 {[%clk 0:00:07.6]} 33. Rc1+
{[%clk 0:00:20.1]} 33... Kd7 {[%clk 0:00:07.5]} 34. Rc6 {[%clk 0:00:20.7]} 34...
h4 {[%clk 0:00:07.5]} 35. Rxb6 {[%clk 0:00:21.1]} 35... h3+ {[%clk 0:00:08.4]}
36. Kh1 {[%clk 0:00:21.2]} 36... Ke7 {[%clk 0:00:09.1]} 37. Rb7+ {[%clk
0:00:21.1]} 37... Kf6 {[%clk 0:00:09.6]} 38. Nd2 {[%clk 0:00:18.9]} 38... Rc8
{[%clk 0:00:09.8]} 39. Nf3 {[%clk 0:00:18.6]} 39... Rc3 {[%clk 0:00:08.6]} 40.
Nxe5 {[%clk 0:00:17.9]} 40... Rxe3 {[%clk 0:00:08.9]} 41. Ng4+ {[%clk
0:00:17.6]} 41... Kf5 {[%clk 0:00:09]} 42. Nxe3+ {[%clk 0:00:18.5]} 42... Ke4
{[%clk 0:00:09.7]} 43. Rb3 {[%clk 0:00:17.1]} 43... f5 {[%clk 0:00:09.1]} 44. a4
{[%clk 0:00:17.8]} 44... g5 {[%clk 0:00:09.4]} 45. Nxf5 {[%clk 0:00:17.3]} 45...
Kxf5 {[%clk 0:00:09.6]} 46. Rxh3 {[%clk 0:00:17.7]} 46... Ke5 {[%clk 0:00:10.2]}
47. Rg3 {[%clk 0:00:18.1]} 47... Kxd5 {[%clk 0:00:11.1]} 48. Rxg5+ {[%clk
0:00:18.3]} 48... Kc6 {[%clk 0:00:12]} 49. a5 {[%clk 0:00:18.6]} 49... Kb7
{[%clk 0:00:11.4]} 50. Kg2 {[%clk 0:00:19.2]} 50... Ka6 {[%clk 0:00:12.3]} 51.
Kf3 {[%clk 0:00:19.6]} 51... d5 {[%clk 0:00:12.8]} 52. Rxd5 {[%clk 0:00:19.3]}
1-0

[Event "Late-Titled-Tuesday-Blitz-September-19-2023"]
[Site "Chess.com"]
[Date "2023.09.19"]
[Round "5"]
[White "AlexandraBotez"]
[Black "UK_23"]
[Result "0-1"]
[WhiteElo "2301"]
[BlackElo "2423"]
[TimeControl "180+1"]
[EndTime "14:54:35 PDT"]
[Termination "UK_23 won by resignation"]

1. d4 {[%clk 0:03:00.9]} 1... d5 {[%clk 0:02:59.3]} 2. g3 {[%clk 0:03:01.1]}
2... Nf6 {[%clk 0:02:58.7]} 3. Bg2 {[%clk 0:03:01.3]} 3... e6 {[%clk 0:02:59.3]}
4. c4 {[%clk 0:03:01]} 4... Be7 {[%clk 0:02:59.4]} 5. Nf3 {[%clk 0:03:01.1]}
5... O-O {[%clk 0:02:59.9]} 6. O-O {[%clk 0:03:00.6]} 6... c6 {[%clk 0:03:00.5]}
7. Ne5 {[%clk 0:02:59.4]} 7... Nfd7 {[%clk 0:02:59.2]} 8. cxd5 {[%clk
0:02:51.1]} 8... cxd5 {[%clk 0:02:50]} 9. Nd3 {[%clk 0:02:49.2]} 9... Nc6 {[%clk
0:02:49.6]} 10. e3 {[%clk 0:02:48.9]} 10... b6 {[%clk 0:02:48.2]} 11. Nc3 {[%clk
0:02:48.5]} 11... Ba6 {[%clk 0:02:42.4]} 12. a3 {[%clk 0:02:41.5]} 12... Rc8
{[%clk 0:02:33.1]} 13. Re1 {[%clk 0:02:28.4]} 13... Na5 {[%clk 0:02:30.8]} 14.
Nb4 {[%clk 0:02:16]} 14... Bb7 {[%clk 0:02:27.8]} 15. Bd2 {[%clk 0:02:09.4]}
15... Nf6 {[%clk 0:02:26.7]} 16. Nd3 {[%clk 0:02:01.9]} 16... Nc4 {[%clk
0:02:25.6]} 17. b3 {[%clk 0:02:00]} 17... Nxd2 {[%clk 0:02:22.7]} 18. Qxd2
{[%clk 0:02:00.9]} 18... Ne4 {[%clk 0:02:15.8]} 19. Nxe4 {[%clk 0:01:58.3]}
19... dxe4 {[%clk 0:02:16.7]} 20. Ne5 {[%clk 0:01:57.3]} 20... Bd5 {[%clk
0:02:11.6]} 21. b4 {[%clk 0:01:52.1]} 21... f6 {[%clk 0:02:07.8]} 22. Ng4 {[%clk
0:01:34]} 22... h5 {[%clk 0:02:06.9]} 23. Ne5 {[%clk 0:01:04.8]} 23... fxe5
{[%clk 0:02:06.6]} 24. dxe5 {[%clk 0:01:05.3]} 24... Qc7 {[%clk 0:01:59.3]} 25.
Qd4 {[%clk 0:00:57.6]} 25... Qc3 {[%clk 0:01:59]} 26. Red1 {[%clk 0:00:53.4]}
26... Qxd4 {[%clk 0:01:44.5]} 27. Rxd4 {[%clk 0:00:53.2]} 27... Rc2 {[%clk
0:01:45.2]} 28. Rf1 {[%clk 0:00:52.3]} 28... Bc4 {[%clk 0:01:39.4]} 29. Bxe4
{[%clk 0:00:52.1]} 29... Bxf1 {[%clk 0:01:28.3]} 30. Bxc2 {[%clk 0:00:51.7]}
30... Bb5 {[%clk 0:01:28.4]} 31. Bb3 {[%clk 0:00:46.2]} 31... Kf7 {[%clk
0:01:01]} 32. Rf4+ {[%clk 0:00:46]} 32... Ke8 {[%clk 0:01:01.6]} 33. Rd4 {[%clk
0:00:17.9]} 33... Bd7 {[%clk 0:00:59]} 34. Bc2 {[%clk 0:00:13.9]} 34... h4
{[%clk 0:00:48.6]} 35. Bg6+ {[%clk 0:00:13.3]} 35... Kd8 {[%clk 0:00:48.8]} 36.
Be4 {[%clk 0:00:13.9]} 36... Kc7 {[%clk 0:00:46.1]} 37. f4 {[%clk 0:00:11.9]}
37... b5 {[%clk 0:00:42.2]} 38. Rd2 {[%clk 0:00:07.8]} 38... hxg3 {[%clk
0:00:38.8]} 39. hxg3 {[%clk 0:00:08]} 39... Rc8 {[%clk 0:00:32.9]} 40. Kf2
{[%clk 0:00:04.2]} 40... Kd8 {[%clk 0:00:30.1]} 41. g4 {[%clk 0:00:04.7]} 41...
Rc3 {[%clk 0:00:29]} 42. Bc6 {[%clk 0:00:03.8]} 42... Rxc6 {[%clk 0:00:28.1]}
43. Kg3 {[%clk 0:00:02.2]} 43... Rc3 {[%clk 0:00:26.7]} 44. Re2 {[%clk
0:00:02.7]} 44... Rxa3 {[%clk 0:00:25.6]} 45. g5 {[%clk 0:00:03.6]} 45... g6
{[%clk 0:00:25.2]} 46. Kg4 {[%clk 0:00:04.2]} 46... Rb3 {[%clk 0:00:24.4]} 47.
Rh2 {[%clk 0:00:04.5]} 47... Rxb4 {[%clk 0:00:23.9]} 48. Rh8+ {[%clk 0:00:04.9]}
48... Be8 {[%clk 0:00:23.9]} 49. Rh7 {[%clk 0:00:04.1]} 49... a5 {[%clk
0:00:23.7]} 50. Rh2 {[%clk 0:00:04]} 50... a4 {[%clk 0:00:23.8]} 51. Rd2+ {[%clk
0:00:04.9]} 51... Bd7 {[%clk 0:00:23.1]} 52. Rh2 {[%clk 0:00:04.7]} 52... a3
{[%clk 0:00:23]} 53. e4 {[%clk 0:00:05.3]} 53... Rxe4 {[%clk 0:00:22.4]} 54. Kf3
{[%clk 0:00:06.2]} 54... Ra4 {[%clk 0:00:22.4]} 55. Ra2 {[%clk 0:00:07.1]} 0-1